bitfinex-derivatives/quotes_BNBF0:USTF0_20250521
["timestamp","ask_amount","ask_price","bid_price","bid_amount"]
[1747802333647,0.26301668,662.63,661.01,1.76544952]
[1747802333848,0.26301668,662.63,661.02,0.61572131]
[1747802334048,0.26301668,662.63,661.03,1.76544952]
[1747802334343,0.26301668,662.63,661.04,0.61572131]
[1747802334542,0.26301668,662.63,661.05,0.61572131]
[1747802334747,0.26301668,662.63,661.06,1.76544952]
[1747802334948,0.26301668,662.63,661.07,0.61572131]
[1747802335148,0.26301668,662.63,661.08,0.61572131]
[1747802335448,1.168,662.64,661.09,1.76544952]
[1747802335643,0.26298985,662.62,661.1,1.76544952]
[1747802335850,0.26298985,662.62,661.11,0.61572131]
[1747802336049,0.26298985,662.62,661.12,0.61572131]
[1747802336350,0.26298985,662.62,661.13,1.76310679]
[1747802336544,0.26298985,662.62,661.14,0.61535811]
[1747802336746,0.26298985,662.62,661.15,1.76310679]
[1747802336950,0.26298985,662.62,661.16,0.61535811]
[1747802337151,0.26298985,662.62,661.17,1.76310679]
[1747802337453,0.26298985,662.62,661.18,0.61514157]
[1747802337647,0.26298985,662.62,661.19,1.76289025]
[1747802337849,0.26298985,662.62,661.2,0.61514157]
[1747802338046,0.26298985,662.62,661.21,1.76289025]
[1747802338349,0.26298985,662.62,661.22,0.61514157]
[1747802338551,3.81099221,662.54,661.23,1.76289025]
[1747802338750,3.81099221,662.54,661.24,0.61514157]
[1747802338950,3.81099221,662.54,661.25,0.61514157]
[1747802339152,3.81099221,662.54,661.26,0.61514157]
[1747802339351,3.81099221,662.54,661.27,0.61514157]
[1747802339547,3.81099221,662.54,661.28,0.61514157]
[1747802339749,0.26297594,662.53,661.29,0.61514157]
[1747802339949,0.26297594,662.53,661.3,0.61514157]
[1747802340152,0.26297594,662.53,660.97,0.29042344]
[1747802340451,0.26297594,662.53,660.98,0.6150197]
[1747802340651,0.26297594,662.53,660.99,1.76100475]
[1747802340852,0.26297594,662.53,661.0,0.6150197]
[1747802341151,0.26297594,662.53,661.01,0.6150197]
[1747802341457,3.81099221,662.54,661.02,1.76100475]
[1747802341756,3.81099221,662.54,661.03,1.76100475]
[1747802341951,3.81099221,662.54,661.04,1.76100475]
[1747802342254,3.81099221,662.54,661.05,0.6150197]
[1747802342454,3.81099221,662.54,661.06,1.76100475]
[1747802342656,0.2629978,662.53,661.07,0.6150197]
[1747802342854,0.2629978,662.53,661.08,0.6150197]
[1747802343056,0.2629978,662.53,661.09,1.76100475]
[1747802343258,0.2629978,662.53,661.1,0.6150197]
[1747802343452,0.2629978,662.53,661.11,1.76100475]
[1747802343654,0.2629978,662.53,661.12,0.6150197]
[1747802343854,0.2629978,662.53,661.13,1.76100475]
[1747802344057,0.2629978,662.53,661.14,0.6150197]
[1747802344257,0.2629978,662.53,661.15,0.6150197]
[1747802344558,0.2629978,662.53,661.16,1.76100475]
[1747802344757,0.2629978,662.53,661.17,0.6150197]
[1747802345058,0.2629978,662.53,661.18,1.76100475]
[1747802345258,0.2629978,662.53,661.19,0.6150197]
[1747802345459,0.2629978,662.53,661.2,1.76100475]
[1747802345759,0.2629978,662.53,661.21,1.76100475]
[1747802345958,0.2629978,662.53,661.22,1.76100475]
[1747802346156,0.2629978,662.53,661.23,0.6150197]
[1747802346358,0.2629978,662.53,661.24,1.76100475]
[1747802346554,0.2629978,662.53,661.25,0.6150197]
[1747802346752,0.2629978,662.53,661.26,0.6150197]
[1747802346956,0.2629978,662.53,661.27,0.6150197]
[1747802347159,0.2629978,662.53,661.28,1.76100475]
[1747802347361,0.2629978,662.53,661.29,1.76100475]
[1747802347661,0.2629978,662.53,661.3,0.6150197]
[1747802347860,0.2629978,662.53,661.31,1.76100475]
[1747802348155,0.2629978,662.53,661.32,1.75906962]
[1747802348360,0.2629978,662.53,661.33,0.61308457]
[1747802348568,0.2629978,662.53,661.34,0.61308457]
[1747802348762,1.168,662.64,661.34,0.61308457]
[1747802348961,1.168,662.64,661.35,0.61308457]
[1747802349355,1.168,662.64,661.36,0.61308457]
[1747802349555,1.168,662.64,661.37,1.75483202]
[1747802349756,1.168,662.64,661.38,0.61089069]
[1747802349959,1.168,662.64,661.39,0.61089069]
[1747802350259,1.168,662.64,661.4,0.61089069]
[1747802350463,1.168,662.64,661.39,1.14174745]
[1747802350464,1.168,662.64,661.41,0.61089069]
[1747802350657,1.168,662.64,661.74,0.29042344]
[1747802350867,1.168,662.64,661.75,0.61089069]
[1747802351061,1.168,662.64,661.76,0.61089069]
[1747802351364,1.168,662.64,661.77,0.61089069]
[1747802351565,1.168,662.64,661.78,1.75263814]
[1747802351760,1.168,662.64,661.74,0.29042344]
[1747802351761,1.168,662.64,661.79,1.75263814]
[1747802351966,0.26278331,663.12,661.8,0.61089069]
[1747802352166,0.26278331,663.12,661.81,0.61089069]
[1747802352365,0.26278331,663.12,661.82,1.75263814]
[1747802352566,0.26278331,663.12,661.83,0.61089069]
[1747802352766,0.26278331,663.12,661.84,1.75263814]
[1747802352966,0.26278331,663.12,661.85,0.61089069]
[1747802353162,0.26278331,663.12,661.86,0.61089069]
[1747802353466,0.26278331,663.12,661.87,1.75263814]
[1747802353663,0.26278331,663.12,661.88,0.61089069]
[1747802353866,0.26278331,663.12,661.89,0.61089069]
[1747802354063,0.26278331,663.12,662.73,0.29042344]
[1747802355070,0.943,663.32,662.74,0.31588179]
[1747802355265,0.26257017,663.27,662.74,0.31588179]
[1747802355871,0.943,663.32,662.74,0.31588179]
[1747802356872,0.943,663.32,663.05,0.29042344]
[1747802359074,0.943,663.32,662.54,0.29042344]
[1747802359772,0.26257809,663.31,662.54,0.29042344]
[1747802360773,0.26257809,663.31,662.55,0.39638213]
[1747802362272,0.26257809,663.31,662.56,0.39638213]
[1747802362572,0.943,663.32,662.56,0.39638213]
[1747802363173,0.943,663.32,662.57,0.39638213]
[1747802365171,0.943,663.32,662.58,0.39638213]
[1747802366277,0.943,663.32,662.59,0.39638213]
[1747802366578,0.26252263,663.57,662.59,0.39638213]
[1747802367974,0.26252263,663.57,662.1,0.29042344]
[1747802368482,5.17542654,665.99,662.1,0.29042344]
[1747802368671,5.17542654,665.99,662.11,1.09775609]
[1747802369278,1.104,665.98,662.12,0.36939888]
[1747802369682,1.36629409,665.98,662.12,0.36939888]
[1747802371084,3.67449964,665.34,662.27,0.29042344]
[1747802371683,0.26238507,665.33,662.27,0.29042344]
[1747802372086,0.26238507,665.33,662.28,0.36939888]
[1747802373190,0.26238507,665.33,662.29,0.36939888]
[1747802374589,0.26238507,665.33,662.08,0.29042344]
[1747802376490,0.26238507,665.33,662.09,0.36282539]
[1747802377400,3.67449964,665.34,662.09,0.36282539]
[1747802377596,3.67449964,665.34,662.1,1.121]
[1747802377794,0.26243354,665.32,662.1,1.121]
[1747802378001,0.26243354,665.32,662.11,0.36282539]
[1747802379898,0.26243354,665.32,662.1,1.121]
[1747802380303,3.67449964,665.34,662.1,1.121]
[1747802380902,0.26242266,665.31,662.1,1.121]
[1747802383403,3.67449964,665.34,662.1,1.121]
[1747802383804,0.26244839,665.3,662.1,1.121]
[1747802385305,3.67449964,664.75,662.1,1.121]
[1747802386609,0.26249887,664.74,662.1,1.121]
[1747802388709,3.67449964,664.36,662.1,1.121]
[1747802393612,0.26249788,664.35,662.1,1.121]
[1747802394512,0.26249788,664.35,662.11,1.11498075]
[1747802394912,0.26249788,664.35,662.12,1.11498075]
[1747802395516,0.26249788,664.35,662.13,1.73164066]
[1747802395814,0.26249788,664.35,662.13,1.43294666]
[1747802396014,0.26249788,664.35,662.14,1.11498075]
[1747802396614,0.26249788,664.35,662.15,1.73206406]
[1747802396816,0.26249788,664.35,662.16,0.61708331]
[1747802397017,0.26249788,664.35,662.15,1.11498075]
[1747802397219,0.26249788,664.35,662.17,1.11498075]
[1747802397817,0.26249788,664.35,662.16,1.11498075]
[1747802398018,0.26249788,664.35,662.17,0.61761527]
[1747802398217,0.26249788,664.35,662.18,1.11498075]
[1747802398418,3.67449964,664.61,662.18,1.11498075]
[1747802398616,3.67449964,664.61,662.11,1.11498075]
[1747802398817,0.26246917,664.34,662.11,1.11498075]
[1747802399113,3.67449964,664.61,662.1,1.121]
[1747802399313,2.22475445,663.75,662.1,1.121]
[1747802399918,1.221,663.74,662.1,1.121]
[1747802400415,0.26259295,663.73,662.1,1.121]
[1747802401622,0.26259295,663.73,661.68,0.26260484]
[1747802401823,0.26259295,663.73,661.69,0.62029275]
[1747802402015,0.26259295,663.73,661.7,1.73131851]
[1747802402220,0.26259295,663.73,661.71,0.62040528]
[1747802402420,0.26259295,663.73,661.72,1.73143104]
[1747802402617,2.22475445,663.39,661.73,0.62040528]
[1747802402820,2.22475445,663.39,661.74,1.73143104]
[1747802403021,2.22475445,663.39,661.75,0.62040528]
[1747802403222,2.22475445,663.39,661.76,0.62040528]
[1747802403421,2.22475445,663.39,661.77,1.73143104]
[1747802403621,2.22475445,663.39,661.78,0.62040528]
[1747802403824,2.22475445,663.39,661.79,1.73143104]
[1747802404020,2.22475445,663.39,661.8,0.62040528]
[1747802404219,2.22475445,663.39,661.81,0.62040528]
[1747802404417,2.22475445,663.39,661.82,1.73143104]
[1747802404619,2.22475445,663.39,661.83,0.62040528]
[1747802404820,0.2626762,663.38,661.84,0.62040528]
[1747802405021,0.2626762,663.38,661.85,1.73143104]
[1747802405218,2.22475445,663.11,661.86,0.62040528]
[1747802405415,2.22475445,663.11,661.87,1.73143104]
[1747802405615,2.22475445,663.11,661.88,0.62040528]
[1747802405819,2.22475445,663.11,661.89,0.62040528]
[1747802406016,2.22475445,663.11,661.9,1.73143104]
[1747802406222,2.22475445,663.11,661.91,0.62040528]
[1747802406422,2.22475445,663.11,661.92,0.62040528]
[1747802406622,2.22475445,663.11,661.86,0.757]
[1747802407823,0.26274264,663.1,661.86,0.757]
[1747802408023,2.22475445,662.95,661.86,0.757]
[1747802410426,1.49833005,662.48,661.86,0.757]
[1747802413629,1.49833005,662.61,661.86,0.757]
[1747802415729,0.26281507,662.73,661.86,0.757]
[1747802418435,1.49833005,662.5,661.86,0.757]
[1747802421130,0.26284286,662.58,661.86,0.757]
[1747802421336,1.49833005,662.71,661.86,0.757]
[1747802421635,0.26280415,662.67,661.86,0.757]
[1747802422437,1.49833005,662.71,661.86,0.757]
[1747802424239,0.26278728,662.79,661.86,0.757]
[1747802425640,1.49833005,662.89,661.86,0.757]
[1747802426741,0.26278629,662.88,661.86,0.757]
[1747802427940,1.49833005,662.83,661.86,0.757]
[1747802428739,0.26277637,662.82,661.86,0.757]
[1747802431442,1.49833005,662.84,661.86,0.757]
[1747802432644,0.26279324,662.83,661.86,0.757]
[1747802433047,1.49833005,662.79,661.86,0.757]
[1747802434348,1.49833005,662.79,661.32,0.29042344]
[1747802434647,1.49833005,662.79,661.33,1.74032084]
[1747802434844,1.49833005,662.79,661.34,0.62324737]
[1747802434845,0.26280415,662.78,661.34,0.62324737]
[1747802435045,0.26280415,662.78,661.35,1.74032084]
[1747802435243,1.152,662.77,661.35,1.11707347]
[1747802435443,1.152,662.77,661.36,1.74033306]
[1747802435749,1.152,662.77,661.37,1.74033306]
[1747802435948,1.152,662.77,661.38,0.62325959]
[1747802436150,1.152,662.77,661.39,1.74033306]
[1747802436349,1.49833005,662.63,661.4,0.62325959]
[1747802436549,1.49833005,662.63,661.41,0.62325959]
[1747802436745,1.49833005,662.63,661.42,0.62325959]
[1747802436949,1.49833005,662.63,661.43,0.62325959]
[1747802437245,1.49833005,662.63,661.44,1.73967804]
[1747802437449,1.49833005,662.63,661.45,0.62313462]
[1747802437649,1.49833005,662.63,661.46,0.62313462]
[1747802437850,1.76119177,662.63,661.47,0.62313462]
[1747802438050,1.76119177,662.63,661.48,0.62313462]
[1747802438247,1.76119177,662.63,661.49,0.62313462]
[1747802438450,1.76119177,662.63,661.5,0.62313462]
[1747802438751,1.76119177,662.63,661.51,1.73967804]
[1747802438952,1.76119177,662.63,661.52,1.73967804]
[1747802439145,1.49833005,662.6,661.53,0.62313462]
[1747802439447,1.49833005,662.6,661.54,1.73967804]
[1747802439755,1.49833005,662.6,661.55,1.73967804]
[1747802440051,1.49833005,662.6,661.56,0.62313462]
[1747802440254,1.49833005,662.6,661.57,1.73967804]
[1747802440453,1.49833005,662.6,661.58,0.62313462]
[1747802440653,1.49833005,662.6,661.59,0.62301462]
[1747802440855,1.49833005,662.6,661.6,0.62301462]
[1747802441053,1.49833005,662.6,661.47,0.956]
[1747802441054,1.49833005,662.6,661.61,0.62301462]
[1747802441249,1.49833005,662.6,661.62,0.62301462]
[1747802441456,1.49833005,662.6,661.63,0.62301462]
[1747802441657,1.49833005,662.6,661.64,1.73938141]
[1747802441851,1.49833005,662.6,661.65,0.62301462]
[1747802442053,1.49833005,662.6,661.66,1.73938141]
[1747802442254,1.49833005,662.6,661.67,0.62301462]
[1747802442451,1.152,662.77,661.68,1.73938141]
[1747802442755,1.152,662.77,661.69,1.73938141]
[1747802442956,1.152,662.77,661.7,0.62301462]
[1747802443157,1.152,662.77,661.71,0.62301462]
[1747802443357,1.152,662.77,661.72,1.73938141]
[1747802443551,1.152,662.77,661.73,0.62301462]
[1747802443754,1.152,662.77,661.74,1.73938141]
[1747802443953,1.152,662.77,661.75,0.62301462]
[1747802444150,1.152,662.77,661.76,0.62301462]
[1747802444354,1.152,662.77,661.77,0.62301462]
[1747802444555,1.152,662.77,661.78,0.62301462]
[1747802444758,1.152,662.77,661.79,1.73938141]
[1747802445052,1.152,662.77,661.8,0.62301462]
[1747802445257,1.152,662.77,661.81,0.62301462]
[1747802445453,1.152,662.77,661.82,1.73938141]
[1747802445654,1.152,662.77,661.82,1.11636679]
[1747802445860,1.152,662.77,661.83,0.62131643]
[1747802446058,1.152,662.77,661.84,1.73768322]
[1747802446359,1.152,662.77,661.85,1.73768322]
[1747802446551,1.152,662.77,661.86,0.62131643]
[1747802446751,1.152,662.77,661.87,0.62131643]
[1747802446957,1.152,662.77,661.88,1.73768322]
[1747802447152,1.152,662.77,661.89,0.62131643]
[1747802447356,1.152,662.77,661.9,1.73768322]
[1747802447554,1.152,662.77,661.91,0.6208202]
[1747802447762,1.152,662.77,661.92,0.6208202]
[1747802447960,1.152,662.77,661.93,1.73718699]
[1747802448158,1.152,662.77,661.94,0.6208202]
[1747802448355,1.152,662.77,661.95,0.6208202]
[1747802448662,1.152,662.77,661.96,1.73718699]
[1747802448958,1.152,662.77,661.97,0.6208202]
[1747802449154,1.152,662.77,661.98,0.6208202]
[1747802449358,1.152,662.77,661.99,1.73718699]
[1747802449558,1.152,662.77,662.0,0.6208202]
[1747802449755,1.152,662.77,662.01,0.6208202]
[1747802449953,1.152,662.77,662.02,0.6208202]
[1747802450152,1.152,662.77,662.03,0.6208202]
[1747802450359,1.152,662.77,662.04,0.6208202]
[1747802450560,1.152,662.77,662.05,1.73718699]
[1747802450762,1.152,662.77,662.06,0.6208202]
[1747802450967,1.152,662.77,662.07,0.6208202]
[1747802451165,1.152,662.77,662.08,0.6208202]
[1747802451366,1.152,662.77,662.09,0.6208202]
[1747802451567,1.152,662.77,662.1,1.73718699]
[1747802451761,1.152,662.77,662.11,0.6208202]
[1747802451968,1.152,662.77,662.12,1.73718699]
[1747802452164,1.152,662.77,662.13,0.6208202]
[1747802452365,1.152,662.77,662.14,0.6208202]
[1747802452562,1.152,662.77,662.15,1.73718699]
[1747802452766,1.152,662.77,662.16,0.6208202]
[1747802452962,1.152,662.77,662.17,0.6208202]
[1747802453166,1.152,662.77,662.17,1.11636679]
[1747802453468,1.152,662.77,661.85,0.29042344]
[1747802453661,1.152,662.77,661.86,1.72942096]
[1747802453866,1.152,662.77,661.87,0.62093802]
[1747802454168,1.152,662.77,661.86,1.10848294]
[1747802454169,1.152,662.77,661.88,1.72942096]
[1747802454370,1.152,662.77,661.89,1.72942096]
[1747802454669,1.152,662.77,661.9,0.62130751]
[1747802454865,1.152,662.77,661.91,0.62130751]
[1747802455065,1.152,662.77,661.92,1.72979045]
[1747802455270,1.152,662.77,661.93,0.62130751]
[1747802455469,1.152,662.77,661.94,1.72979045]
[1747802455669,1.152,662.77,661.95,1.72979045]
[1747802455864,1.152,662.77,661.96,0.62130751]
[1747802456064,1.152,662.77,661.97,0.62130751]
[1747802456268,1.152,662.77,661.98,0.62163556]
[1747802456467,1.152,662.77,661.99,1.7301185]
[1747802456665,1.152,662.77,662.0,0.62167155]
[1747802456869,1.152,662.77,662.01,1.73015449]
[1747802457067,1.152,662.77,662.02,0.62167155]
[1747802457371,1.152,662.77,662.03,0.62167155]
[1747802457671,1.152,662.77,662.04,0.62167155]
[1747802457971,1.152,662.77,662.05,0.62167155]
[1747802458171,1.152,662.77,662.06,0.62189077]
[1747802458470,1.152,662.77,662.07,0.62189077]
[1747802458671,1.152,662.77,662.08,0.62189077]
[1747802458872,1.152,662.77,662.09,0.62189077]
[1747802459066,1.152,662.77,662.1,0.62189077]
[1747802459265,1.152,662.77,662.11,0.62189077]
[1747802459470,1.152,662.77,662.08,1.437]
[1747802459772,1.152,662.77,662.09,0.62236667]
[1747802459973,1.152,662.77,662.08,1.437]
[1747802460172,1.152,662.77,662.09,0.62237233]
[1747802460372,1.152,662.77,662.08,1.437]
[1747802460669,1.152,662.77,662.09,0.62243851]
[1747802460868,1.152,662.77,662.08,1.437]
[1747802461071,1.152,662.77,662.09,0.62242377]
[1747802461273,0.26272181,662.93,662.1,0.62242377]
[1747802461569,1.49833005,663.01,662.08,1.437]
[1747802461774,1.49833005,663.01,662.09,0.62239008]
[1747802461974,1.49833005,663.01,662.1,0.62239008]
[1747802462174,1.49833005,663.01,662.08,1.437]
[1747802462375,1.49833005,663.01,662.09,0.62249471]
[1747802462670,1.49833005,663.01,662.1,0.62249471]
[1747802462875,0.26270099,663.0,662.11,0.62247961]
[1747802463071,0.26270099,663.0,662.12,0.62244507]
[1747802463271,1.49833005,663.01,662.08,1.437]
[1747802463476,1.49833005,663.01,662.09,0.62246327]
[1747802463774,1.49833005,663.01,662.1,0.62246327]
[1747802463975,1.49833005,663.01,662.11,0.62238074]
[1747802464176,1.138,663.0,662.12,0.62238074]
[1747802464378,1.138,663.0,662.13,0.62238074]
[1747802464580,1.138,663.0,662.14,0.62238074]
[1747802464772,1.138,663.0,662.15,0.62227323]
[1747802464976,1.138,663.0,662.08,1.437]
[1747802465172,1.138,663.0,662.09,0.62227424]
[1747802465378,1.138,663.0,662.1,0.62227424]
[1747802465678,1.138,663.0,662.11,0.62227424]
[1747802465876,1.138,663.0,662.12,0.62227424]
[1747802466074,1.138,663.0,662.13,0.62227424]
[1747802466276,1.138,663.0,662.14,0.62227424]
[1747802466476,1.138,663.0,662.15,0.62227424]
[1747802466675,1.138,663.0,662.16,0.62227424]
[1747802466877,1.138,663.0,662.17,0.62227424]
[1747802467177,1.138,663.0,662.18,0.62227424]
[1747802467374,1.138,663.0,662.08,1.437]
[1747802467578,1.138,663.0,662.09,0.62204196]
[1747802467778,1.138,663.0,662.1,0.62204196]
[1747802467980,1.138,663.0,662.11,0.62221174]
[1747802468181,1.138,663.0,662.08,1.437]
[1747802468384,1.138,663.0,662.09,0.62222868]
[1747802468580,1.138,663.0,662.08,1.437]
[1747802473187,1.12012344,662.12,662.08,1.437]
[1747802475888,1.12012344,662.12,660.8,0.26285378]
[1747802476087,1.12012344,662.26,660.81,0.61225496]
[1747802476288,1.12012344,662.26,660.8,0.55327722]
[1747802476486,1.12012344,662.26,660.81,0.61201613]
[1747802476685,1.12012344,662.26,660.82,1.73422573]
[1747802476884,1.12012344,662.26,660.83,0.61201613]
[1747802477082,1.12012344,662.26,660.84,1.73422573]
[1747802477282,1.12012344,662.26,660.85,0.61201613]
[1747802477484,1.12012344,662.26,660.86,0.61201613]
[1747802477687,1.12012344,662.26,660.87,0.61201613]
[1747802477886,1.12012344,662.26,660.88,1.73422573]
[1747802478086,1.12012344,662.26,660.89,0.61201613]
[1747802478286,1.12012344,662.26,660.9,0.61201613]
[1747802478483,0.858,662.25,660.91,1.73422573]
[1747802478684,0.858,662.25,660.92,0.61201613]
[1747802478885,0.858,662.25,661.08,0.29042344]
[1747802479086,0.858,662.25,661.09,0.61201613]
[1747802479288,0.858,662.25,661.1,0.61201613]
[1747802479486,0.858,662.25,661.11,0.61201613]
[1747802479686,0.858,662.25,661.12,1.73422573]
[1747802479883,0.858,662.25,661.13,0.61201613]
[1747802480088,0.858,662.25,661.14,0.61201613]
[1747802480286,0.858,662.25,661.15,0.61201613]
[1747802480489,0.858,662.25,661.16,0.61201613]
[1747802480689,0.858,662.25,661.17,1.73422573]
[1747802480991,0.858,662.25,661.18,1.73422573]
[1747802481190,0.858,662.25,661.19,0.61201613]
[1747802481385,0.858,662.25,661.2,0.61201613]
[1747802481587,0.858,662.25,661.21,1.7340375]
[1747802481890,0.858,662.25,661.22,0.6118279]
[1747802482089,0.858,662.25,661.23,0.6118279]
[1747802482289,0.858,662.25,661.24,1.7340375]
[1747802482489,0.858,662.25,661.25,0.6118279]
[1747802482690,0.858,662.25,661.26,1.7340375]
[1747802482890,0.858,662.25,661.27,0.6118279]
[1747802483092,0.858,662.25,661.28,1.7340375]
[1747802483291,0.858,662.25,661.29,0.61186315]
[1747802483489,0.858,662.25,661.3,1.73407275]
[1747802483686,0.858,662.25,661.31,1.73407275]
[1747802483893,0.858,662.25,661.32,0.61186315]
[1747802484091,0.858,662.25,661.33,0.61186315]
[1747802484293,0.858,662.25,661.34,1.73407275]
[1747802484486,0.858,662.25,661.35,0.61186315]
[1747802484690,0.858,662.25,661.36,0.61184373]
[1747802484893,0.858,662.25,661.37,0.61184373]
[1747802485093,0.858,662.25,661.38,1.73405333]
[1747802485394,0.858,662.25,661.39,0.61184373]
[1747802485593,0.858,662.25,661.4,1.73405333]
[1747802485789,0.858,662.25,661.41,0.61184373]
[1747802485994,0.858,662.25,661.42,0.61184373]
[1747802486193,0.858,662.25,661.43,0.61184373]
[1747802486393,0.858,662.25,661.44,1.73405333]
[1747802486589,0.858,662.25,661.44,1.1222096]
[1747802486793,0.858,662.25,661.45,0.61192896]
[1747802487094,0.858,662.25,661.46,0.61192896]
[1747802487293,0.858,662.25,661.47,1.73413856]
[1747802487593,0.858,662.25,661.48,0.61192896]
[1747802487794,0.858,662.25,661.49,1.73413856]
[1747802488093,0.858,662.25,661.5,0.61192896]
[1747802488295,0.858,662.25,661.51,1.73413856]
[1747802488597,0.858,662.25,661.52,0.61192896]
[1747802488793,0.858,662.25,661.53,0.61192896]
[1747802488992,0.858,662.25,661.52,1.1222096]
[1747802489295,0.858,662.25,661.1,0.949]
[1747802489495,0.858,662.25,661.11,1.72829561]
[1747802489794,0.858,662.25,661.12,1.72829561]
[1747802489995,0.858,662.25,661.13,0.61281715]
[1747802490196,0.858,662.25,661.14,1.72829561]
[1747802490397,0.858,662.25,661.15,0.61281715]
[1747802490596,0.858,662.25,661.16,0.61281715]
[1747802490791,0.858,662.25,661.17,0.61281715]
[1747802490989,0.858,662.25,661.18,0.61281715]
[1747802491195,0.858,662.25,661.19,1.72829561]
[1747802491393,0.858,662.25,661.2,0.61281715]
[1747802491597,0.858,662.25,661.21,0.61281715]
[1747802491794,0.858,662.25,661.22,1.72829561]
[1747802491991,0.858,662.25,661.23,0.61281715]
[1747802492195,1.12012344,662.15,661.24,1.72829561]
[1747802492390,1.12012344,662.15,661.25,0.61281715]
[1747802492597,1.12012344,662.15,661.26,0.61281715]
[1747802492798,1.12012344,662.15,661.27,1.72829561]
[1747802492992,1.12012344,662.15,661.1,0.949]
[1747802492993,1.12012344,662.15,661.28,1.72829561]
[1747802493193,1.12012344,662.15,661.29,0.61281715]
[1747802493400,1.12012344,662.15,661.3,0.61185583]
[1747802493596,1.12012344,662.15,661.31,1.72733429]
[1747802493797,1.12012344,662.15,661.32,0.61185583]
[1747802493996,1.12012344,662.15,661.33,1.72733429]
[1747802494199,1.12012344,662.15,661.34,0.61185583]
[1747802494398,1.12012344,662.15,661.35,1.72705301]
[1747802494601,1.12012344,662.26,661.36,0.61152981]
[1747802494896,1.12012344,662.26,661.37,0.61152981]
[1747802495102,1.12012344,662.26,661.38,0.61152981]
[1747802495302,0.82,662.25,661.39,0.61152981]
[1747802495495,0.82,662.25,661.4,0.61152981]
[1747802495802,0.82,662.25,661.4,1.11547846]
[1747802496001,0.82,662.25,661.41,1.72676526]
[1747802496302,0.82,662.25,661.41,1.11547846]
[1747802496505,0.82,662.25,661.42,1.11547846]
[1747802496904,0.82,662.25,661.43,0.61110147]
[1747802497103,0.82,662.25,661.44,0.61105106]
[1747802497303,0.82,662.25,661.1,0.949]
[1747802497304,1.12012344,662.24,661.45,1.72652952]
[1747802497503,1.12012344,662.24,661.45,1.11547846]
[1747802497703,1.12012344,662.24,661.46,1.72640383]
[1747802497900,1.12012344,662.24,661.47,1.11547846]
[1747802498306,1.12012344,662.24,661.48,1.11547846]
[1747802498508,1.12012344,662.24,661.49,0.61067446]
[1747802498706,1.12012344,662.24,661.5,0.61067446]
[1747802498907,1.12012344,662.24,661.51,0.61067446]
[1747802499107,1.12012344,662.24,661.52,0.61067446]
[1747802499302,1.12012344,662.24,661.53,1.11547846]
[1747802499907,1.12012344,662.24,661.1,0.949]
[1747802500108,1.12012344,662.24,661.11,0.61069314]
[1747802500309,1.12012344,662.24,661.12,0.61069314]
[1747802500509,1.12012344,662.24,661.13,0.61069314]
[1747802500709,0.82,662.25,661.14,0.61069314]
[1747802500911,0.82,662.25,661.15,1.71841884]
[1747802501210,0.82,662.25,661.16,1.71841884]
[1747802501509,0.82,662.25,661.17,1.71842433]
[1747802501711,0.82,662.25,661.18,0.61069863]
[1747802501912,0.82,662.25,661.19,0.61069863]
[1747802502107,0.82,662.25,661.18,1.1077257]
[1747802502309,0.82,662.25,661.19,1.1077257]
[1747802502806,0.82,662.25,661.1,0.949]
[1747802502807,0.82,662.25,661.2,1.1077257]
[1747802503210,0.82,662.25,661.21,1.1077257]
[1747802503814,0.26301569,662.24,661.22,1.1077257]
[1747802504313,0.26301569,662.24,661.1,0.949]
[1747802504906,0.26301569,662.24,661.11,1.10794168]
[1747802505412,0.26301569,662.24,661.12,1.10653765]
[1747802505813,0.26301569,662.24,661.13,1.10653765]
[1747802506214,0.26301569,662.24,661.14,1.10653765]
[1747802506519,0.82,662.25,661.14,1.10653765]
[1747802506815,0.82,662.25,661.15,1.10653765]
[1747802507219,0.82,662.25,661.1,0.949]
[1747802507817,0.26302861,662.24,661.11,1.10668527]
[1747802508216,0.26302861,662.24,661.1,0.949]
[1747802509417,1.38315205,662.24,661.1,0.949]
[1747802509615,1.38315205,662.24,661.11,1.10479139]
[1747802510017,1.38315205,662.24,661.12,1.10479139]
[1747802510611,1.38315205,662.24,661.13,1.10479139]